Workbook

Sheet 三向地震台
L1: 有效面积/m² | M1: 流量L/min | N1: 缸单价/万元 | O1: 阀单价
C2: X最大速度m/s | D2: 1 | E2: X最大加速度g | F2: 1 | G2: 台面及负载总质量t | H2: 10 | J2: 推力X/t | K2: =$H$2*1.5/2*F2 -> 7.5 | L2: =K2*9.8/14000 -> 0.00525 | M2: =L2*D2*60000 -> 315 | N2: =IF(K2<5,5,IF(K2<10,6.5,IF(K2<20,9,IF(K2<30,11,IF(K2<50,16,20))))) -> 6.5 | O2: =IF(M2<=60,2,IF(M2<=120,4,IF(M2<=250,19,IF(M2<=1000,24,46)))) -> 24
C3: Y最大速度m/s | D3: 1 | E3: Y最大加速度 | F3: 1 | J3: 推力Y | K3: =$H$2*1.5/2*F3 -> 7.5 | L3: =K3*9.8/14000 -> 0.00525 | M3: =L3*D3*60000 -> 315 | N3: =IF(K3<5,5,IF(K3<10,6.5,IF(K3<20,9,IF(K3<30,11,IF(K3<50,16,20))))) -> 6.5 | O3: =IF(M3<=60,2,IF(M3<=120,4,IF(M3<=250,19,IF(M3<=1000,24,46)))) -> 24
C4: Z最大速度m/s | D4: 1 | E4: Z最大加速度 | F4: 1 | J4: 推力Z | K4: =$H$2*1.5/4*F4 -> 3.75 | L4: 0.002625 | M4: 157.5 | N4: 5 | O4: 19
J5: 油源总流量L/min | K5: =(M2*2+M3*2+M4*4)*0.3 -> 567
A10: 缸总价/万元 | B10: =N2*2+N3*2+N4*4 -> 46
A11: 油源总价/万元 | B11: =IF(K5<=50,9,IF(K5<=200,20,CEILING((K5-200)/100,1)*7+20)) -> 48
A12: 控制系统/万元 | B12: 25
A13: 阀总价/万元 | B13: =O2*2+O3*2+O4*4 -> 172
A14: 机械部分总价/万元 | B14: 0
A15: 五项成本价 | B15: =SUM(B10:B14) -> 291

Sheet 双向台
L1: 有效面积/m² | M1: 流量L/min | N1: 缸单价/万元 | O1: 阀单价
C2: X最大速度m/s | D2: 1 | E2: X最大加速度g | F2: 1 | G2: 台面及负载总质量t | H2: 10 | J2: 推力X/t | K2: =$H$2*1.5/2*F2 -> 7.5 | L2: =K2*9.8/14000 -> 0.00525 | M2: =L2*D2*60000 -> 315 | N2: =IF(K2<5,5,IF(K2<10,6.5,IF(K2<20,9,IF(K2<30,11,IF(K2<50,16,20))))) -> 6.5 | O2: =IF(M2<=60,2,IF(M2<=120,4,IF(M2<=250,19,IF(M2<=1000,24,46)))) -> 24
C3: Y最大速度m/s | D3: 1 | E3: Y最大加速度 | F3: 1 | J3: 推力Y | K3: =$H$2*1.5*F3 -> 15 | L3: =K3*9.8/14000 -> 0.0105 | M3: =L3*D3*60000 -> 630 | N3: =IF(K3<5,5,IF(K3<10,6.5,IF(K3<20,9,IF(K3<30,11,IF(K3<50,16,20))))) -> 9 | O3: =IF(M3<=60,2,IF(M3<=120,4,IF(M3<=250,19,IF(M3<=1000,24,46)))) -> 24
J5: 油源总流量L/min | K5: =(M2*2+M3)*0.3 -> 378
A10: 缸总价/万元 | B10: =N2*2+N3 -> 22
A11: 油源总价/万元 | B11: =IF(K5<=50,9,IF(K5<=200,20,CEILING((K5-200)/100,1)*7+20)) -> 34
A12: 控制系统/万元 | B12: 6
A13: 阀总价/万元 | B13: =O2*2+O3 -> 72
A14: 机械部分总价/万元 | B14: 0
A15: 五项成本价 | B15: =SUM(B10:B14) -> 134

Sheet 单向台
L1: 有效面积/m² | M1: 流量L/min | N1: 缸单价/万元 | O1: 阀单价
G2: 台面及负载总质量t | H2: 10
C4: Z最大速度m/s | D4: 1 | E4: Z最大加速度/g | F4: 1 | J4: 推力Z | K4: =$H$2*1.5*F4 -> 15 | L4: =K4*9.8/14000 -> 0.0105 | M4: =L4*D4*60000*0.8 -> 504 | N4: =IF(K4<5,5,IF(K4<10,6.5,IF(K4<20,9,IF(K4<30,11,IF(K4<50,16,20))))) -> 9 | O4: =IF(M4<=60,2,IF(M4<=120,4,IF(M4<=250,19,IF(M4<=1000,24,46)))) -> 24
J5: 油源总流量L/min | K5: =M4*0.63 -> 317.52
A10: 缸总价/万元 | B10: =N4 -> 9
A11: 油源总价/万元 | B11: =IF(K5<=50,9,IF(K5<=200,20,CEILING((K5-200)/100,1)*7+20)) -> 34
A12: 控制系统/万元 | B12: 5
A13: 阀总价/万元 | B13: =O4 -> 24
A14: 机械部分总价/万元 | B14: 0
A15: 五项成本价 | B15: =SUM(B10:B14) -> 72

Sheet Stewart
L1: 有效面积/m² | M1: 流量L/min | N1: 缸单价/万元 | O1: 阀单价
G2: 台面及负载总质量t | H2: 15
C4: Z最大速度m/s | D4: 1 | E4: Z最大加速度/g | F4: 1.5 | J4: 推力Z | K4: =$H$2*1.5/6*F4 -> 5.625 | L4: =K4*9.8/14000 -> 0.0039375 | M4: =L4*D4*60000 -> 236.25 | N4: =IF(K4<5,5,IF(K4<10,6.5,IF(K4<20,9,IF(K4<30,11,IF(K4<50,16,20))))) -> 6.5 | O4: =IF(M4<=60,2,IF(M4<=120,4,IF(M4<=250,19,IF(M4<=1000,24,46)))) -> 19
J5: 油源总流量L/min | K5: =M4*6 -> 1417.5
A10: 缸总价/万元 | B10: =N4*6 -> 39
A11: 油源总价/万元 | B11: =IF(K5<=50,9,IF(K5<=200,20,CEILING((K5-200)/100,1)*7+20)) -> 111
A12: 控制系统/万元 | B12: 25
A13: 阀总价/万元 | B13: =O4*6 -> 114
A14: 机械部分总价/万元 | B14: 0
A15: 五项成本价 | B15: =SUM(B10:B14) -> 289
